bitfinex/quotes_ETHUSD_20240703
["timestamp","ask_amount","ask_price","bid_price","bid_amount"]
[1720049721839,2.65265987,3302.0,3301.9,1.125]
[1720049722059,3.70157252,3302.0,3301.9,1.125]
[1720049722260,1.33102993,3302.0,3301.9,1.125]
[1720049722476,2.37054273,3302.0,3301.9,1.125]
[1720049723044,2.37054273,3302.0,3301.8,3.02858]
[1720049723277,2.37054273,3301.9,3301.8,1.125]
[1720049723436,4.34531843,3301.9,3301.5,3.02889]
[1720049723640,4.59390444,3301.8,3301.5,3.02889]
[1720049723844,4.59390444,3301.7,3301.5,3.02889]
[1720049724040,2.37054273,3301.6,3301.5,3.02889]
[1720049725135,2.37083445,3301.6,3301.5,3.02889]
[1720049725333,2.22302356,3301.8,3301.6,3.02883]
[1720049725545,2.37084458,3301.7,3301.6,3.02883]
[1720049726967,4.59386814,3301.7,3301.6,3.02883]
[1720049727130,2.37084458,3301.7,3301.6,3.02883]
[1720049727332,6.26713749,3301.7,3301.5,1.125]
[1720049727545,4.04411393,3301.6,3301.5,4.15392]
[1720049728185,2.99507584,3301.6,3301.5,4.15392]
[1720049728335,4.04412861,3301.6,3301.5,4.15392]
[1720049731134,4.04412861,3301.6,3301.5,3.02892]
[1720049731367,4.04411555,3301.6,3301.5,4.15392]
[1720049731869,4.04411555,3301.6,3301.5,4.23518754]
[1720049732571,5.94792503,3301.6,3301.5,4.23518754]
[1720049732869,4.04411555,3301.6,3301.5,4.23518754]
[1720049733070,5.94792589,3301.6,3301.5,4.23518754]
[1720049733575,4.04411555,3301.6,3301.5,4.23518754]
[1720049733883,5.94786531,3301.6,3301.5,4.23518754]
[1720049734582,3.57689826,3301.6,3301.5,4.23518754]
[1720049734868,4.62594478,3301.6,3301.5,4.23518754]
[1720049735074,4.6258599,3301.6,3301.5,4.23518754]
[1720049735369,2.72231506,3301.6,3301.5,4.23518754]
[1720049735670,4.62577486,3301.6,3301.5,4.23518754]
[1720049735876,1.67326935,3301.6,3301.5,7.44071329]
[1720049736035,1.9034598,3301.7,3301.6,3.02883]
[1720049736549,1.9034598,3301.8,3301.6,6.13908374]
[1720049736737,3.57521818,3301.7,3301.6,6.13908374]
[1720049737067,1.9034598,3301.7,3301.6,7.26408374]
[1720049737874,9.7346,3302.3,3301.7,3.02873]
[1720049738046,2.22052648,3302.1,3301.9,1.125]
[1720049738252,2.7204893,3302.0,3301.9,1.125]
[1720049739766,2.7204893,3302.0,3301.9,1.2056273]
[1720049740999,3.76944365,3302.0,3301.9,1.2056273]
[1720049741489,3.76944365,3302.0,3301.9,4.2341773]
[1720049741781,3.76944365,3302.0,3301.9,6.4939773]
[1720049742148,2.72046755,3302.0,3301.9,6.4939773]
[1720049742360,3.7693943,3302.0,3301.9,6.4939773]
[1720049743550,3.7693943,3302.0,3301.9,9.5225273]
[1720049744150,2.72046755,3302.0,3301.9,9.5225273]
[1720049744460,3.76938102,3302.0,3301.9,9.5225273]
[1720049747292,2.72046755,3302.0,3301.9,9.5225273]
[1720049747450,3.76938908,3302.0,3301.9,9.5225273]
[1720049747790,2.72046755,3302.0,3301.9,9.5225273]
[1720049747992,3.76937337,3302.0,3301.9,9.5225273]
[1720049748760,5.67345489,3302.0,3301.9,9.5225273]
[1720049749148,5.67345489,3302.0,3301.9,9.4419]
[1720049749348,5.67345489,3302.0,3301.9,10.46119383]
[1720049749349,4.62454907,3302.0,3301.9,10.46119383]
[1720049750696,3.57565338,3302.0,3301.9,10.46119383]
[1720049751065,1.67149044,3302.0,3301.9,10.46119383]
[1720049751274,1.90416294,3302.1,3302.0,6.05692]
[1720049751478,1.04887469,3302.1,3302.0,7.10302138]
[1720049751673,2.95332246,3302.1,3302.0,7.10302138]
[1720049751898,4.64742375,3302.1,3302.0,7.17812521]
[1720049752407,2.74297598,3302.1,3302.0,6.13202383]
[1720049753621,1.69410502,3302.1,3302.0,6.13202383]
[1720049753774,2.7430155,3302.1,3302.0,6.13202383]
[1720049754609,2.7430155,3302.1,3302.0,3.10356383]
[1720049756810,1.69410502,3302.1,3302.0,3.10356383]
[1720049757091,2.7430393,3302.1,3302.0,3.10356383]
[1720049757289,2.7430393,3302.1,3302.0,3.02846]
[1720049757489,2.7430393,3302.1,3302.0,3.09877968]
[1720049757984,4.96510424,3302.1,3302.0,0.07031968]
[1720049758189,5.2219597,3302.1,3302.0,0.07031968]
[1720049758508,5.2219597,3302.1,3302.0,0.06789967]
[1720049758716,7.10053939,3302.1,3301.7,4.15369]
[1720049758936,4.96502929,3302.0,3301.8,3.09654967]
[1720049759125,2.7430393,3301.9,3301.8,3.09654967]
[1720049759325,4.96502929,3301.9,3301.8,0.06789967]
[1720049759521,2.7430393,3301.9,3301.7,4.15374]
[1720049759735,2.7430393,3301.8,3301.7,4.15374]
[1720049760112,1.69410502,3301.8,3301.7,4.15374]
[1720049760316,2.74311519,3301.8,3301.7,4.15374]
[1720049760520,1.69410502,3301.8,3301.7,4.15374]
[1720049760717,2.74312054,3301.8,3301.7,4.15374]
[1720049762535,2.743085,3301.8,3301.7,4.15374]
[1720049762835,1.04897998,3301.8,3301.7,4.15374]
[1720049763336,2.743085,3301.8,3301.7,4.15374]
[1720049763536,2.74308312,3301.8,3301.7,4.15374]
[1720049764143,4.64784549,3301.8,3301.7,7.900735]
[1720049764454,1.69410502,3301.8,3301.7,7.900735]
[1720049764745,2.22220358,3302.1,3302.0,3.02846]
[1720049764913,3.27113527,3302.1,3302.0,3.02846]
[1720049765533,1.69774553,3302.1,3302.0,3.02846]
[1720049765699,3.2712647,3302.1,3302.0,3.02846]
[1720049766142,4.96901023,3302.1,3302.0,3.02846]
[1720049766580,2.74668468,3302.1,3302.0,3.02846]
[1720049767742,4.96901023,3302.1,3302.0,3.02846]
[1720049768793,1.69774553,3302.1,3302.0,3.02846]
[1720049769086,1.04897894,3302.1,3302.0,3.02846]
[1720049769248,2.74672447,3302.1,3302.0,3.02846]
[1720049769979,2.74672447,3302.1,3302.0,3.09646006]
[1720049771945,2.7467267,3302.1,3302.0,3.09646006]
[1720049772374,1.69774553,3302.1,3302.0,3.09646006]
[1720049772700,2.74672841,3302.1,3302.0,3.09646006]
[1720049773144,4.96721759,3302.1,3302.0,3.09646006]
[1720049773348,2.74672841,3302.1,3302.0,3.09646006]
[1720049773560,3.26950202,3302.1,3302.0,3.09646006]
[1720049773761,4.96724755,3302.1,3302.0,3.09646006]
[1720049774970,3.91826467,3302.1,3302.0,3.09646006]
[1720049775175,4.96734054,3302.1,3302.0,3.09646006]
[1720049775381,2.74670981,3302.1,3302.0,3.09646006]
[1720049777308,4.96715581,3302.1,3302.0,3.09646006]
[1720049778295,1.69774553,3302.1,3302.0,3.09646006]
[1720049778496,3.26951363,3302.1,3302.0,3.09646006]
[1720049778902,2.74669588,3302.1,3302.0,3.09646006]
[1720049781389,1.69774553,3302.1,3302.0,0.06800006]
[1720049781586,2.74672252,3302.1,3301.8,4.15364]
[1720049781791,4.96811649,3302.0,3301.8,4.15364]
[1720049781993,4.96811649,3301.9,3301.8,4.15364]
[1720049782886,4.96811649,3301.9,3301.5,1.125]
[1720049782887,2.74672252,3301.9,3301.5,1.125]
[1720049783112,2.4012,3302.0,3301.5,4.15385]
[1720049783113,2.22122999,3301.7,3301.5,4.15385]
[1720049783323,2.74672252,3301.6,3301.5,4.15385]
[1720049784692,1.69774553,3301.6,3301.5,4.15385]
[1720049784885,2.7468183,3301.6,3301.5,4.22185749]
[1720049785186,1.69774553,3301.6,3301.5,4.22185749]
[1720049785400,2.74682203,3301.6,3301.5,4.22185749]
[1720049788016,2.746806,3301.6,3301.5,4.22185749]
[1720049788218,2.74678968,3301.6,3301.5,4.22185749]
[1720049789486,1.04904415,3301.6,3301.5,4.22185749]
[1720049789686,2.95286852,3301.6,3301.5,4.22185749]
[1720049789891,4.65061405,3301.6,3301.5,4.22185749]
[1720049790680,2.74678968,3301.6,3301.5,4.22185749]
[1720049790905,2.95233393,3301.6,3301.5,4.22185749]
[1720049791104,2.22048381,3301.8,3301.6,3.02883]
[1720049791303,2.77401412,3301.7,3301.6,3.02883]
[1720049791482,2.77401412,3301.7,3301.6,4.15383]
[1720049791698,2.77401412,3301.7,3301.6,4.22183749]
[1720049794613,4.09581091,3301.7,3301.6,4.22183749]
[1720049797644,4.09573575,3301.7,3301.6,4.22183749]
[1720049798027,4.09567978,3301.7,3301.6,4.22183749]
[1720049798338,4.09567978,3301.7,3301.6,7.25066749]
[1720049798523,4.09567978,3301.7,3301.6,7.97573424]
[1720049798834,4.95041021,3301.7,3301.6,10.30603424]
[1720049800741,4.95054549,3301.7,3301.6,10.30603424]
[1720049802015,4.95054549,3301.7,3301.6,13.33486424]
[1720049802415,6.45373565,3301.7,3301.6,13.33486424]
[1720049802841,4.54976474,3301.7,3301.6,13.33486424]
[1720049803042,6.45373565,3301.7,3301.6,13.33486424]
[1720049803746,4.54976474,3301.7,3301.6,13.33486424]
[1720049803951,3.22809816,3301.7,3301.6,13.33486424]
[1720049804152,4.72937395,3301.7,3301.6,13.33486424]
[1720049804844,6.454342,3301.7,3301.6,13.33486424]
[1720049806452,6.454342,3301.7,3301.6,12.20986424]
[1720049806623,6.454342,3301.7,3301.6,13.33486424]
[1720049807243,5.13302911,3301.7,3301.6,13.33486424]
[1720049807451,4.72971679,3301.7,3301.6,13.33486424]
[1720049807637,6.45468484,3301.7,3301.6,13.33486424]
[1720049810555,6.45467577,3301.7,3301.6,13.33486424]
[1720049810863,6.45467577,3301.7,3301.6,9.18103424]
[1720049811030,5.59876272,3301.7,3301.6,7.25066749]
[1720049812353,5.59876272,3301.7,3301.6,3.09683749]
[1720049813444,3.22809816,3301.7,3301.6,3.09683749]
[1720049813638,5.59896798,3301.7,3301.6,3.09683749]
[1720049814667,5.59896798,3301.7,3301.6,0.06800749]
[1720049814843,6.62423246,3301.7,3301.1,3.02921]
[1720049815045,2.22276103,3301.4,3301.1,3.02921]
[1720049815350,5.59896798,3301.3,3301.1,3.02921]
[1720049815584,5.59896798,3301.2,3301.1,3.02921]
[1720049816081,5.59896798,3301.2,3301.1,4.15421]
[1720049816695,7.92314252,3301.2,3300.5,3.02977]
[1720049816991,1.90427428,3300.9,3300.8,1.125]
[1720049817198,3.87443394,3300.9,3300.8,1.125]
[1720049817370,6.4535916,3300.9,3300.8,1.125]
[1720049817800,4.55011935,3300.9,3300.8,1.125]
[1720049817966,4.72861393,3300.9,3300.8,4.15456]
[1720049818291,6.45358198,3300.9,3300.8,4.15456]
[1720049819792,4.55018183,3300.9,3300.8,4.15456]
[1720049820699,6.45305177,3300.9,3300.8,4.22048136]
[1720049821663,3.22809816,3300.9,3300.8,4.22048136]
[1720049821863,2.82523315,3300.9,3300.8,4.22048136]
[1720049822093,4.56805559,3300.9,3300.8,4.22048136]
[1720049822278,3.24595255,3300.9,3300.8,4.22048136]
[1720049822498,4.56758015,3300.9,3300.8,3.09548136]
[1720049822678,3.24549536,3300.9,3300.8,4.22048136]
[1720049822880,2.82524834,3300.9,3300.8,4.22048136]
[1720049823394,4.56764219,3300.9,3300.8,4.22048136]
[1720049823777,8.83428477,3300.9,3300.8,0.06592136]
[1720049824113,9.29104899,3300.9,3300.6,4.15475]
[1720049824256,1.50313011,3300.8,3300.6,4.15475]
[1720049824465,1.50313011,3300.8,3300.7,0.0642247]
[1720049826105,1.50313011,3300.9,3300.7,3.0938847]
[1720049826309,3.08666352,3300.8,3300.7,3.0938847]
[1720049826506,3.08675097,3300.8,3300.7,4.2188847]
[1720049826673,1.50313011,3300.8,3300.7,4.2188847]
[1720049827074,1.58359692,3300.8,3300.7,4.2188847]
[1720049827476,3.08672703,3300.8,3300.7,4.2188847]
[1720049828423,1.50313011,3300.8,3300.7,4.2188847]
[1720049831729,1.50313011,3300.8,3300.7,0.0642247]
[1720049832009,1.50313011,3300.8,3299.8,6.03042]
[1720049832010,2.4362,3300.7,3300.2,3.0301]
[1720049832177,1.26614415,3300.5,3300.4,1.125]
[1720049832375,1.26614415,3300.5,3300.4,1.18924702]
[1720049834283,1.26614415,3300.5,3300.4,4.21917702]
[1720049834935,1.26586559,3300.6,3300.4,4.21917702]
[1720049835233,1.26586559,3300.6,3300.5,1.125]
[1720049835377,1.26586559,3300.6,3300.5,1.18941076]
[1720049835584,1.26586559,3300.6,3300.5,4.21925076]
[1720049840911,2.78370108,3300.6,3300.5,4.21925076]
[1720049841313,1.51783549,3300.6,3300.5,4.21925076]
[1720049841458,2.78283474,3300.6,3300.5,4.21925076]
[1720049844173,3.83222822,3300.6,3300.5,4.21925076]
[1720049844512,2.78283474,3300.6,3300.5,4.21925076]
[1720049844673,3.83222853,3300.6,3300.5,4.21925076]
[1720049847683,2.78283474,3300.6,3300.5,4.21925076]
[1720049847887,3.83221266,3300.6,3300.5,4.21925076]
[1720049848284,3.8313243,3300.6,3300.5,4.21925076]
[1720049849216,2.56722489,3300.6,3300.5,4.21925076]
[1720049850876,1.51783549,3300.6,3300.5,4.21925076]
[1720049851083,2.56723353,3300.6,3300.5,4.21925076]
[1720049851289,3.8148959,3300.6,3300.5,4.21925076]
[1720049853884,3.8148959,3300.6,3300.5,7.24909076]
[1720049854091,1.18483549,3300.6,3300.5,10.39111384]
[1720049854301,7.43,3301.1,3300.7,6.05932]
[1720049854302,1.58210126,3300.8,3300.7,6.05932]
[1720049854488,0.94957291,3300.8,3300.7,10.70176038]
[1720049854689,1.58210126,3301.0,3300.7,3.58193303]
[1720049854921,1.58210126,3301.0,3300.9,6.05894]
[1720049855115,2.63131207,3301.0,3300.9,6.05894]
[1720049855632,1.04921081,3301.0,3300.9,7.24843265]
[1720049857335,9.3308492,3301.1,3301.0,3.02938]
[1720049857500,13.44095563,3301.1,3301.0,3.02938]
[1720049857910,13.44095563,3301.1,3301.0,3.09387265]
[1720049858526,6.01095563,3301.1,3301.0,3.09387265]
[1720049859231,4.11018523,3301.1,3301.0,0.06449265]
[1720049859442,4.11018523,3301.1,3300.8,4.15449]
[1720049859607,6.01212336,3301.0,3300.8,4.15449]
[1720049859807,3.06089888,3300.9,3300.8,4.15449]
[1720049860218,4.96283701,3300.9,3300.8,4.15449]
[1720049860572,3.24319982,3300.9,3300.8,4.15449]
[1720049860725,4.72907704,3300.9,3300.8,4.15449]
[1720049860929,3.24319982,3300.9,3300.8,4.15449]
[1720049861280,4.56524862,3300.9,3300.8,3.02949]
[1720049861469,4.56524862,3300.9,3300.8,4.15449]
[1720049862520,3.24319982,3300.9,3300.8,4.15449]
[1720049862745,4.56523289,3300.9,3300.8,4.15449]
[1720049863822,4.56524703,3300.9,3300.8,4.15449]
[1720049864459,6.46837766,3300.9,3300.8,4.15449]
[1720049865365,4.56524703,3300.9,3300.8,4.15449]
[1720049865970,4.56524703,3300.9,3300.8,7.18405]
[1720049867070,3.24319982,3300.9,3300.8,7.18405]
[1720049867229,4.56524353,3300.9,3300.8,7.18405]
[1720049870024,4.56524353,3300.9,3300.8,8.132515]
[1720049870260,1.50440174,3300.9,3300.8,8.132515]
[1720049870429,2.82643657,3300.9,3300.8,8.132515]
[1720049870752,4.56527925,3300.9,3300.8,8.132515]
[1720049870961,4.56527925,3300.9,3300.8,7.18405]
[1720049871311,2.82643657,3300.9,3300.8,7.18405]
[1720049873175,1.50440174,3300.9,3300.8,7.18405]
[1720049874837,1.50440174,3300.9,3300.8,7.24839751]
[1720049885618,3.0900882,3300.9,3300.8,9.60449751]
[1720049885781,3.09006061,3300.9,3300.8,10.86790926]
[1720049886103,1.50440174,3300.9,3300.8,10.86790926]
[1720049886267,1.58570244,3300.9,3300.8,10.86790926]
[1720049886769,3.09010418,3300.9,3300.8,10.86790926]
[1720049886970,3.09010418,3300.9,3300.8,9.74290926]
[1720049887273,1.58570274,3300.9,3300.8,10.86790926]
[1720049887495,3.09010448,3300.9,3300.8,10.86790926]
[1720049888391,1.50440174,3300.9,3300.8,10.86790926]
[1720049888624,1.58572644,3300.9,3300.8,10.86790926]
[1720049888825,1.90287361,3301.2,3300.8,4.80885926]
[1720049888972,1.58572311,3300.9,3300.8,8.47956751]
[1720049889176,3.08981927,3300.9,3300.8,9.60456751]
[1720049890400,1.50405467,3300.9,3300.8,9.60456751]
[1720049890924,3.08990336,3300.9,3300.8,9.60456751]
[1720049891106,1.50405467,3300.9,3300.8,10.86798626]
[1720049893109,3.09010246,3300.9,3300.8,10.86798626]
[1720049893418,1.50405467,3300.9,3300.8,10.86798626]
[1720049894284,3.09033796,3300.9,3300.8,10.86798626]
[1720049895020,3.09033796,3300.9,3300.8,13.89754626]
[1720049895234,1.50405467,3300.9,3300.8,13.89754626]
[1720049895417,3.09051809,3300.9,3300.8,13.89754626]
[1720049895599,1.58646342,3300.9,3300.8,13.89754626]
[1720049895798,3.09051809,3300.9,3300.8,13.89754626]
[1720049896111,1.58646342,3300.9,3300.8,13.89754626]
[1720049896279,3.09051809,3300.9,3300.8,13.89754626]
[1720049896926,1.58646342,3301.0,3300.9,6.05894]
[1720049897100,3.09445766,3301.0,3300.9,8.57367663]
[1720049897301,3.09445766,3301.0,3300.9,8.63582724]
[1720049897485,1.50799424,3301.0,3300.9,8.63582724]
[1720049899222,4.57501858,3301.0,3300.9,8.63582724]
[1720049900800,2.82994725,3301.0,3300.9,8.63582724]
[1720049901112,4.57511873,3301.0,3300.9,8.63582724]
[1720049901450,3.25316572,3301.0,3300.9,8.63582724]
[1720049901776,4.5751116,3301.0,3300.9,8.63582724]
[1720049901922,4.57512324,3301.0,3300.9,8.63582724]
[1720049904257,2.82995176,3301.0,3300.9,8.63582724]
[1720049904646,1.50799424,3301.0,3300.9,8.63582724]
[1720049904961,2.8299307,3301.0,3300.9,8.63582724]
[1720049906166,4.57489215,3301.0,3300.9,8.63582724]
[1720049906357,2.8299307,3301.0,3300.9,7.24609061]
[1720049906725,4.57492255,3301.0,3300.9,7.24609061]
[1720049907046,2.8299307,3301.0,3300.9,7.24609061]
[1720049907448,4.57491404,3301.0,3300.9,7.24609061]
[1720049907761,2.8299307,3301.0,3300.9,7.24609061]
[1720049908062,2.82993692,3301.0,3300.9,7.24609061]
[1720049908934,4.57499455,3301.0,3300.9,7.24609061]
[1720049909450,2.82993692,3301.0,3300.9,7.24609061]
[1720049911162,1.50799424,3301.0,3300.9,7.24609061]
[1720049911323,2.82992915,3301.0,3300.9,7.24609061]
[1720049911722,1.50799424,3301.0,3300.9,7.24609061]
[1720049911974,2.82993258,3301.0,3300.9,7.24609061]
[1720049913266,4.57589753,3301.0,3300.9,7.24609061]
[1720049913826,2.82993258,3301.0,3300.9,7.24609061]
[1720049914457,2.82992787,3301.0,3300.9,7.24609061]
[1720049914660,4.57994372,3301.0,3300.9,7.24609061]
[1720049914853,4.57995221,3301.0,3300.9,7.24609061]
[1720049917490,3.25801009,3301.0,3300.9,7.24609061]
[1720049917778,1.50799424,3301.0,3300.9,10.28749967]
[1720049919079,3.09614296,3301.0,3300.9,10.28749967]
[1720049919579,1.50799424,3301.0,3300.9,10.28749967]
[1720049919984,3.09598289,3301.0,3300.9,10.28749967]
[1720049920363,3.09598969,3301.0,3300.9,10.28749967]
[1720049920759,1.50799424,3301.0,3300.9,10.28749967]
[1720049921270,1.50799424,3301.0,3300.9,6.84569967]
[1720049921482,1.50799424,3301.0,3300.9,6.12109061]
[1720049921687,1.50799424,3301.0,3300.9,7.24609061]
[1720049923097,1.50799424,3301.0,3300.9,6.12109061]
[1720049923304,1.50799424,3301.0,3300.9,7.24609061]
[1720049924272,2.82992036,3301.0,3300.9,7.24609061]
[1720049924475,2.82992036,3301.0,3300.9,6.12109061]
[1720049924476,4.57719462,3301.0,3300.9,6.12109061]
[1720049924809,4.57721898,3301.0,3300.9,7.24609061]
[1720049927303,4.57722374,3301.0,3300.9,7.24609061]
[1720049927671,4.57722351,3301.0,3300.9,7.24609061]
[1720049930415,3.2552685,3301.0,3300.9,7.24609061]
[1720049930597,6.48263543,3301.0,3300.9,0.06215061]
[1720049930774,6.48263543,3301.0,3300.9,1.18715061]
[1720049930775,8.04065562,3301.0,3300.9,1.18715061]
[1720049930974,8.04065562,3301.0,3300.9,1.125]
[1720049932297,8.04065562,3301.0,3300.9,4.15447]
[1720049932495,8.04065562,3301.0,3300.9,4.21656853]
[1720049933596,5.6694685,3301.0,3300.9,4.21656853]
[1720049933799,8.04077918,3301.0,3300.9,4.21656853]
[1720049935517,8.04077918,3301.0,3300.9,0.06209853]
[1720049935817,8.04077918,3301.0,3300.9,1.125]
[1720049936009,8.04077918,3301.0,3300.9,1.18709853]
[1720049936895,8.04075469,3301.0,3300.9,1.18709853]
[1720049937320,5.6694685,3301.0,3300.9,1.18709853]
[1720049937520,8.04075958,3301.0,3300.9,1.18709853]
[1720049938818,8.04075958,3301.0,3300.9,0.06209853]
[1720049938819,9.06715989,3301.0,3300.9,0.06209853]
[1720049939032,2.4452,3300.7,3300.1,1.125]
[1720049939212,1.90518095,3300.3,3300.1,1.125]
[1720049939387,1.50799424,3300.2,3300.1,1.125]
[1720049940093,1.32228963,3300.2,3300.1,1.125]
[1720049940440,1.32230519,3300.2,3300.1,1.125]
[1720049940593,1.90415988,3300.3,3300.1,1.125]
[1720049940919,1.32230586,3300.2,3300.1,1.125]
[1720049941616,1.90415988,3300.4,3300.1,1.125]
[1720049941933,3.05140707,3300.3,3300.1,1.125]
[1720049942237,1.90415988,3300.4,3300.1,1.125]
[1720049942537,1.90242883,3300.4,3300.1,1.125]
[1720049943238,1.58497984,3300.2,3300.1,1.125]
[1720049945604,1.58401191,3300.2,3300.1,1.125]
[1720049946325,5.47486,3300.7,3300.1,4.15517]
[1720049946326,1.58401191,3300.3,3300.1,4.15517]
[1720049946529,1.58401191,3300.3,3300.2,1.125]
[1720049947149,3.09988848,3300.3,3300.2,1.125]
[1720049947352,3.09988848,3300.3,3300.2,4.15511]
[1720049948765,1.51587657,3300.3,3300.2,7.18522]
[1720049948923,1.26647696,3300.4,3300.3,3.03002]
[1720049949112,1.58307283,3300.5,3300.4,3.02993]
[1720049949313,1.58307214,3300.5,3300.4,3.02993]
[1720049949533,3.09478001,3300.5,3300.4,3.02993]
[1720049949917,1.51170787,3300.5,3300.4,3.02993]
[1720049950114,3.09478001,3300.5,3300.4,3.02993]
[1720049950430,1.58307214,3300.5,3300.4,3.02993]
[1720049950815,3.09478001,3300.5,3300.4,3.02993]
[1720049951551,1.58312481,3300.6,3300.5,3.02984]
[1720049951737,1.58312481,3300.6,3300.5,4.15484]
[1720049951941,3.09496567,3300.6,3300.5,4.21115817]
[1720049952255,1.51181387,3300.6,3300.5,4.21115817]
[1720049952546,1.58309744,3300.6,3300.5,4.21115817]
[1720049952944,3.09491131,3300.6,3300.5,4.21115817]
[1720049954580,1.51181387,3300.6,3300.5,4.21115817]
[1720049955383,1.58307745,3300.6,3300.5,4.21115817]
[1720049955774,1.51181387,3300.8,3300.5,4.21115817]
[1720049955973,1.51181387,3300.7,3300.5,4.21115817]
[1720049956147,1.51181387,3300.6,3300.5,4.21115817]
[1720049956350,1.51181387,3300.7,3300.5,4.21115817]
[1720049956551,1.51181387,3300.6,3300.5,4.21115817]
[1720049957051,3.26036341,3300.8,3300.5,4.21115817]
[1720049957378,1.51181387,3300.7,3300.5,4.21115817]
[1720049957553,1.51181387,3300.6,3300.5,4.21115817]
[1720049957768,3.26035218,3300.8,3300.5,4.21115817]
[1720049957959,1.51181387,3300.7,3300.5,4.21115817]
[1720049958289,1.51181387,3300.6,3300.5,4.21115817]
[1720049958782,1.51181387,3300.8,3300.5,4.21115817]
[1720049958989,1.51181387,3300.7,3300.5,4.21115817]
[1720049959986,1.51181387,3300.6,3300.5,4.21115817]
[1720049960564,1.51181387,3300.8,3300.5,4.21115817]
[1720049960883,1.51181387,3300.7,3300.5,4.21115817]
[1720049961064,1.51181387,3300.6,3300.5,3.08615817]
[1720049961598,1.51181387,3300.7,3300.5,3.08615817]
[1720049965603,1.51181387,3300.7,3300.6,7.1845]
[1720049965902,1.9005329,3301.1,3300.6,6.53501244]
[1720049966059,1.58397986,3300.7,3300.6,8.43976244]
[1720049966256,1.58397986,3300.7,3300.6,10.40873868]
[1720049967059,3.10081601,3300.7,3300.6,10.40873868]
[1720049967259,1.58397986,3300.8,3300.7,6.05932]
[1720049967459,1.26754823,3300.8,3300.7,7.18432]
[1720049967666,1.26754823,3300.8,3300.7,7.24051556]
[1720049967895,9.33126201,3301.3,3301.0,3.02938]
[1720049968106,5.63840792,3301.2,3301.1,3.02929]
[1720049968288,2.56646195,3301.2,3301.1,4.15429]
[1720049968624,2.56646195,3301.2,3301.1,4.21048556]
[1720049968625,1.51725749,3301.2,3301.1,4.21048556]
[1720049969262,1.58451619,3301.2,3301.1,4.21048556]
[1720049970198,1.90126201,3301.5,3301.2,3.02915]
[1720049970503,2.37104259,3301.4,3301.3,0.05613982]
[1720049970703,4.07619263,3301.4,3301.2,3.02915]
[1720049970912,2.4347,3301.7,3301.3,0.05613982]
[1720049971079,1.90147649,3301.5,3301.2,3.02915]
[1720049971399,3.02700239,3301.4,3301.2,3.02915]
[1720049971698,1.90147649,3301.5,3301.2,3.02915]
[1720049972006,3.02695386,3301.4,3301.2,3.02915]
[1720049972167,1.90147649,3301.5,3301.2,3.02915]
[1720049972370,3.02692374,3301.4,3301.2,3.02915]
[1720049972569,1.90147649,3301.5,3301.2,3.02915]
[1720049972869,1.7050164,3301.4,3301.2,3.02915]
[1720049973094,1.90147649,3301.5,3301.3,3.02905]
[1720049973399,1.70493356,3301.4,3301.3,3.02905]
[1720049973717,3.02685408,3301.4,3301.3,3.02905]
[1720049974015,5.97747688,3301.4,3301.3,3.02905]
[1720049974181,1.70493356,3301.4,3301.3,3.02905]
[1720049974370,3.22329433,3301.4,3301.3,3.02905]
[1720049974700,1.90136998,3301.4,3301.3,3.02905]
[1720049974901,3.0268573,3301.4,3301.3,3.02905]
[1720049975115,4.92844038,3301.4,3301.3,3.02905]
[1720049976068,3.0268573,3301.4,3301.3,3.02905]
[1720049976512,4.92844038,3301.4,3301.3,3.02905]
[1720049976694,3.0268573,3301.4,3301.3,4.15405]
[1720049977509,3.02683723,3301.4,3301.3,4.15405]
[1720049977881,3.02684201,3301.4,3301.3,4.15405]
[1720049979415,1.70493356,3301.4,3301.3,4.15405]
[1720049979585,1.90170519,3301.5,3301.3,4.15405]
[1720049979777,3.02684371,3301.4,3301.3,4.20993719]
[1720049979980,3.02683973,3301.4,3301.3,4.20993719]
[1720049980179,3.02684468,3301.4,3301.3,3.08493719]
[1720049980719,3.0268593,3301.4,3301.3,3.08493719]
[1720049981829,1.70493356,3301.4,3301.3,3.08493719]
[1720049982028,3.02684747,3301.4,3301.3,3.08493719]
[1720049982199,1.70493356,3301.4,3301.3,3.08493719]
[1720049982538,1.32192355,3301.4,3301.3,3.08493719]
[1720049982691,1.90141387,3301.5,3301.3,3.08493719]
[1720049982692,3.60634743,3301.5,3301.3,3.08493719]
[1720049983035,4.92766785,3301.4,3301.3,3.08493719]
[1720049983326,1.70493356,3301.4,3301.3,3.08493719]
[1720049984399,1.90081087,3301.5,3301.3,3.08493719]
[1720049984596,1.70493356,3301.4,3301.3,3.08493719]
[1720049984846,1.90081087,3301.5,3301.3,3.08493719]
[1720049985654,1.90081087,3301.6,3301.3,3.08493719]
[1720049985851,4.09977582,3301.5,3301.3,3.08493719]
[1720049986044,1.90081087,3301.5,3301.3,3.08493719]
[1720049986245,1.56781087,3301.5,3301.3,3.08493719]
[1720049986432,2.4347,3301.7,3301.4,3.02901]
[1720049986606,4.08775433,3301.6,3301.4,3.02901]
[1720049986805,2.4347,3301.7,3301.5,0.05570143]
[1720049987051,1.71543774,3301.6,3301.5,0.05570143]
[1720049987349,4.08645601,3301.6,3301.5,0.05570143]
[1720049987506,1.71543774,3301.6,3301.5,0.05570143]
[1720049987704,4.08644862,3301.6,3301.5,0.05570143]
[1720049990349,3.03731067,3301.6,3301.5,0.05570143]
[1720049990545,4.08641617,3301.6,3301.5,0.05570143]
[1720049990746,4.08641527,3301.6,3301.5,0.05570143]
[1720049991218,4.08641527,3301.6,3301.5,3.08462143]
[1720049992155,3.03732034,3301.6,3301.5,3.08462143]
[1720049992351,5.98763806,3301.6,3301.5,3.08462143]
[1720049993481,1.71543774,3301.6,3301.5,3.08462143]
[1720049993663,4.27233509,3301.6,3301.5,3.08462143]
[1720049993874,5.98777283,3301.6,3301.5,3.08462143]
[1720049994881,4.08641358,3301.6,3301.5,3.08462143]
[1720049996794,3.03733482,3301.6,3301.5,3.08462143]
[1720049996964,5.13558414,3301.6,3301.5,3.08462143]
[1720049998293,4.08645948,3301.6,3301.5,3.08462143]
[1720049999997,1.71543774,3301.6,3301.5,3.08462143]
[1720050000200,4.08645529,3301.6,3301.5,3.08462143]
[1720050000587,4.08645672,3301.6,3301.5,3.08462143]
[1720050002272,4.08645685,3301.6,3301.5,3.08462143]
[1720050003397,4.08645568,3301.6,3301.5,3.08462143]
[1720050005467,1.71543774,3301.6,3301.5,3.08462143]
[1720050005708,2.37101723,3301.6,3301.5,3.08462143]
[1720050005915,4.08645497,3301.6,3301.5,3.08462143]
[1720050008086,4.08645497,3301.6,3301.5,7.08507757]
[1720050008287,5.99026203,3301.6,3301.5,7.08507757]
[1720050008598,1.71543774,3301.6,3301.5,7.08507757]
[1720050008895,4.27437477,3301.6,3301.5,7.08507757]
[1720050009085,5.98981251,3301.6,3301.5,7.08507757]